bitfinex-derivatives/quotes_BNBF0:USTF0_20250425
["timestamp","ask_amount","ask_price","bid_price","bid_amount"]
[1745568034525,1.24692054,609.0,606.21,0.30258706]
[1745568034822,1.24692054,609.0,606.22,0.30258706]
[1745568035021,1.24692054,609.0,606.23,0.30258706]
[1745568035525,1.24692054,609.0,606.24,1.64858706]
[1745568035721,1.24692054,609.0,606.25,0.30258706]
[1745568035926,1.24692054,609.0,606.26,0.30258706]
[1745568036123,1.24692054,609.0,606.24,1.346]
[1745568036124,1.24692054,609.0,606.27,0.30258706]
[1745568036330,1.24692054,609.0,606.24,1.346]
[1745568036331,1.24692054,609.13,606.25,0.30258706]
[1745568036627,1.24692054,609.13,606.26,1.84558706]
[1745568036826,1.24692054,609.13,606.27,0.30258706]
[1745568037328,1.24692054,609.13,606.26,1.543]
[1745568037623,1.24692054,609.13,606.27,0.30254599]
[1745568037827,1.24692054,609.13,606.28,0.30254599]
[1745568038023,1.24692054,609.13,606.27,0.30254599]
[1745568039128,1.24692054,609.09,606.31,1.04520797]
[1745568039327,1.24692054,609.09,606.32,0.30254599]
[1745568041728,1.24692054,609.27,606.32,0.30254599]
[1745568041928,1.24692054,609.27,606.3,0.30254599]
[1745568044432,1.24692054,609.22,606.3,0.30254599]
[1745568046530,1.24692054,609.22,606.3,1.73754599]
[1745568046735,1.24692054,609.22,606.31,0.30254599]
[1745568047135,1.24692054,609.22,606.3,1.435]
[1745568047434,1.24692054,609.22,606.31,0.3025469]
[1745568047838,1.24692054,609.13,606.33,1.04520797]
[1745568048036,1.24692054,609.13,606.34,0.3025469]
[1745568050338,1.24692054,609.13,606.33,1.04520797]
[1745568050533,1.24692054,609.15,606.34,0.30260516]
[1745568050733,1.24692054,609.15,606.32,0.30260516]
[1745568051039,1.24692054,609.15,606.31,1.04520797]
[1745568052140,1.24692054,609.15,606.32,0.30266047]
[1745568053444,1.24692054,609.15,606.31,1.04520797]
[1745568053638,1.24692054,609.16,606.32,0.30265076]
[1745568053836,1.24692054,609.16,606.3,1.435]
[1745568057343,1.24692054,609.15,606.3,1.435]
[1745568059543,1.24692054,608.95,606.3,1.435]
[1745568061744,0.2866486,608.94,606.3,1.435]
[1745568062140,0.2866486,608.94,606.31,0.30267229]
[1745568062439,1.24692054,608.84,606.26,1.543]
[1745568063545,1.24692054,608.84,606.27,0.30262746]
[1745568064146,0.28664506,608.83,606.26,1.543]
[1745568064346,0.28664506,608.83,606.27,0.30262679]
[1745568066044,1.24692054,609.12,606.27,0.30262679]
[1745568066253,0.28660257,608.82,606.27,0.30262679]
[1745568066548,1.24692054,609.12,606.27,1.51062679]
[1745568066747,1.24692054,609.12,606.28,0.30262679]
[1745568067344,1.24692054,609.12,606.27,1.208]
[1745568067648,1.24692054,609.12,606.28,0.30261006]
[1745568068850,1.24692054,608.85,606.28,1.83061006]
[1745568069048,1.24692054,608.85,606.28,1.528]
[1745568069245,1.24692054,608.85,606.29,0.30257513]
[1745568070146,1.24692054,608.85,606.29,1.65057513]
[1745568070351,1.24692054,608.85,606.3,0.30257513]
[1745568071053,1.24692054,608.89,606.31,1.04520797]
[1745568071245,1.24692054,608.89,606.32,0.30257513]
[1745568072452,0.28658132,608.88,606.32,0.30257513]
[1745568073251,0.28658132,608.88,606.4,1.04520797]
[1745568073450,0.28658132,608.88,606.41,0.30257513]
[1745568074954,1.24692054,608.97,606.41,0.30257513]
[1745568075152,0.28655419,608.87,606.41,0.30257513]
[1745568075454,1.24692054,608.97,606.41,0.30257513]
[1745568075651,1.24692054,608.97,606.42,0.30250575]
[1745568075856,2.12137941,609.74,606.3,0.28655419]
[1745568075857,1.24692054,609.08,606.43,0.30250575]
[1745568076055,1.24692054,609.08,606.38,0.30250575]
[1745568076256,1.24692054,609.08,606.39,0.30250575]
[1745568076551,1.24692054,609.08,606.4,0.30250575]
[1745568076756,1.24692054,609.08,606.38,0.30250575]
[1745568076953,0.28654475,609.07,606.38,0.30250575]
[1745568077154,0.28654475,609.07,606.37,1.04520797]
[1745568077354,0.28654475,609.07,606.38,0.30251019]
[1745568077957,1.24692054,609.08,606.38,0.30251019]
[1745568078256,0.28654475,609.06,606.38,0.30251019]
[1745568078654,0.28654475,609.06,606.34,0.30251019]
[1745568078854,0.28654475,609.06,606.39,0.30251019]
[1745568079159,0.28654475,609.06,606.4,0.30251019]
[1745568079460,0.28654475,609.06,606.41,0.30251019]
[1745568079656,0.28654475,609.06,606.34,0.30251019]
[1745568080058,0.28654475,609.06,606.35,1.302]
[1745568080257,0.28654475,609.06,606.36,0.30251019]
[1745568080459,0.28654475,609.06,606.35,1.302]
[1745568080651,0.28654475,609.06,606.36,0.30246911]
[1745568082058,0.28654475,609.06,606.35,1.302]
[1745568082254,0.28654475,609.06,606.36,0.30244128]
[1745568083959,1.24692054,609.93,606.36,0.30244128]
[1745568084161,0.28639972,609.05,606.36,0.30244128]
[1745568084561,1.24692054,609.93,606.36,0.30244128]
[1745568084763,1.24692054,609.24,606.43,1.04520797]
[1745568084963,1.24692054,609.24,606.44,0.30244128]
[1745568085164,1.24692054,609.24,606.43,1.04520797]
[1745568085364,1.24692054,609.24,606.44,0.30243111]
[1745568086063,0.28647162,609.23,606.44,0.30243111]
[1745568086763,0.28647162,609.23,606.43,1.04520797]
[1745568086965,1.24692054,609.24,606.44,0.30242299]
[1745568087167,1.24692054,609.33,606.44,0.30242299]
[1745568087367,0.28647162,609.22,606.41,0.30242299]
[1745568087560,1.24692054,609.33,606.42,0.30242299]
[1745568087763,1.24692054,609.33,606.43,0.30242299]
[1745568087960,1.24692054,609.33,606.44,0.30242299]
[1745568088267,1.24692054,609.33,606.4,1.04520797]
[1745568088268,1.24692054,609.33,606.45,0.30242299]
[1745568088564,0.28646455,609.32,606.46,0.30241203]
[1745568088764,0.28646455,609.32,606.47,0.30241203]
[1745568088972,0.28646455,609.32,606.4,1.04520797]
[1745568088973,0.28646455,609.32,606.41,0.30241203]
[1745568089270,0.28646455,609.32,606.42,0.30241203]
[1745568089464,0.28646455,609.32,606.43,0.30241203]
[1745568089664,0.28646455,609.32,606.44,0.30241203]
[1745568089866,0.28646455,609.32,606.42,0.30241203]
[1745568090169,1.24692054,609.33,606.43,0.3024133]
[1745568090370,0.28645158,609.31,606.42,0.3024133]
[1745568092970,1.24692054,609.38,606.42,0.3024133]
[1745568093271,0.28643861,609.3,606.42,0.3024133]
[1745568093471,1.24692054,609.38,606.42,0.3024133]
[1745568093673,1.24692054,609.67,606.42,0.3024133]
[1745568094273,0.28640207,609.66,606.42,0.3024133]
[1745568095874,1.24692054,609.67,606.42,0.3024133]
[1745568096074,2.12137941,609.86,606.42,1.7834133]
[1745568096372,0.28639736,609.65,606.43,0.3024133]
[1745568096566,2.12137941,609.86,606.43,0.3024133]
[1745568097672,2.12137941,609.86,606.44,0.3024133]
[1745568097868,2.12137941,609.86,606.45,0.3024133]
[1745568098072,2.12137941,609.86,606.46,0.3024133]
[1745568098267,2.12137941,609.86,606.43,0.3024133]
[1745568098474,1.24355814,609.54,606.48,1.04520797]
[1745568098666,1.24355814,609.54,606.49,0.3024133]
[1745568099175,0.28640443,609.53,606.49,0.3024133]
[1745568099776,0.28640443,609.53,606.5,0.3024133]
[1745568100075,0.28640443,609.53,606.51,0.3024133]
[1745568100276,0.28640443,609.53,606.52,0.3024133]
[1745568100477,0.28640443,609.53,606.61,1.04520797]
[1745568100776,0.28640443,609.53,606.62,0.3024133]
[1745568100977,0.28640443,609.53,606.63,0.30234667]
[1745568101176,0.28640443,609.53,606.62,0.30234667]
[1745568101372,0.28640443,609.53,606.63,0.30234667]
[1745568101571,0.28640443,609.53,606.62,0.30234667]
[1745568101979,2.12137941,609.66,606.62,0.30234667]
[1745568102276,0.28635847,609.52,606.62,0.30234667]
[1745568102476,2.12137941,609.66,606.61,1.04520797]
[1745568102677,2.12137941,609.66,606.62,0.30234526]
[1745568102978,2.12137941,609.66,606.67,1.04520797]
[1745568103277,2.12137941,609.75,606.68,0.30234526]
[1745568103474,0.28634905,609.65,606.68,0.30234526]
[1745568103678,2.12137941,609.75,606.68,0.30234526]
[1745568103873,0.28635258,609.64,606.68,0.30234526]
[1745568104174,2.12137941,609.75,606.68,0.30234526]
[1745568104377,0.28635494,609.63,606.68,1.63734526]
[1745568104573,0.28635494,609.63,606.69,0.30234526]
[1745568104773,2.12137941,609.75,606.69,0.30234526]
[1745568104976,0.28635612,609.62,606.69,0.30234526]
[1745568105278,2.12137941,609.75,606.69,0.30234526]
[1745568106086,2.12137941,609.93,606.69,0.30234526]
[1745568107385,0.28634669,609.92,606.69,0.30234526]
[1745568107991,2.12137941,609.93,606.69,0.30234526]
[1745568108187,2.12137941,609.93,606.68,1.335]
[1745568108188,0.28633256,609.91,606.68,1.335]
[1745568108487,2.12137941,609.86,606.68,1.335]
[1745568108790,2.12137941,609.86,606.69,0.3023942]
[1745568109185,2.12137941,609.86,606.68,1.335]
[1745568109388,2.12137941,609.86,606.69,0.30234171]
[1745568110391,2.12137941,609.55,606.82,1.04520797]
[1745568110583,2.12137941,609.55,606.83,0.30234171]
[1745568111287,0.28634669,609.54,606.83,0.30234171]
[1745568112090,0.28634669,609.54,606.82,1.04520797]
[1745568112291,0.28634669,609.54,606.83,0.30228514]
[1745568112791,0.28634669,609.54,606.84,0.30228514]
[1745568112986,0.28634669,609.54,606.75,0.30228514]
[1745568113692,0.28634669,609.54,606.74,1.04520797]
[1745568113890,0.28634669,609.54,606.75,0.30228135]
[1745568114090,2.12137941,609.83,606.75,0.30228135]
[1745568114290,0.28629722,609.53,606.75,0.30228135]
[1745568114492,2.12137941,609.83,606.75,0.30228135]
[1745568115192,2.12137941,609.83,606.89,1.04520797]
[1745568115393,2.12137941,609.83,606.9,0.30227637]
[1745568116294,0.28627956,609.82,606.9,0.30227637]
[1745568116995,2.12137941,609.83,606.9,0.30227637]
[1745568117195,0.28627485,609.81,606.9,0.30227637]
[1745568118394,2.12137941,609.7,607.0,1.04520797]
[1745568118590,2.12137941,609.7,607.01,0.30227637]
[1745568120188,0.28627485,609.69,607.01,0.30227637]
[1745568120690,0.28627485,609.69,607.02,1.566]
[1745568120894,0.28627485,609.69,607.03,0.30227637]
[1745568122991,2.12137941,609.84,607.03,0.30227637]
[1745568123196,0.28624895,609.68,607.03,0.30227637]
[1745568123596,2.12137941,609.75,607.03,0.30227637]
[1745568124399,0.28624541,609.74,607.03,0.30227637]
[1745568125598,0.28624541,609.74,607.07,1.04520797]
[1745568125897,0.28624541,609.74,607.08,0.30227637]
[1745568126099,2.12137941,609.81,607.08,0.30227637]
[1745568126298,0.28621128,609.73,607.08,0.30227637]
[1745568126498,2.12137941,609.81,607.08,0.30227637]
[1745568127700,2.12137941,609.81,607.07,1.04520797]
[1745568127894,2.12137941,609.81,607.08,0.30216203]
[1745568128496,0.28620422,609.8,607.08,0.30216203]
[1745568128992,2.12137941,610.17,607.09,0.30216432]
[1745568129197,2.12137941,610.17,607.1,0.30216432]
[1745568129497,2.12137941,610.17,607.11,0.30216432]
[1745568129696,2.12137941,610.17,607.11,1.305]
[1745568129896,2.12137941,610.17,607.12,0.30216432]
[1745568130499,2.12137941,610.17,607.11,1.305]
[1745568130701,2.12137941,610.17,607.13,1.308]
[1745568130902,2.12137941,610.11,607.14,0.30215036]
[1745568132197,0.28615715,610.1,607.14,0.30215036]
[1745568135003,2.12137941,610.24,607.14,0.30215036]
[1745568135198,0.28613009,610.09,607.14,0.30215036]
[1745568135600,2.12137941,610.24,607.14,0.30215036]
[1745568136304,2.12137941,610.29,607.14,0.30215036]
[1745568136500,0.28612539,610.23,607.14,0.30215036]
[1745568137102,0.28612539,610.23,607.13,1.308]
[1745568137303,0.28612539,610.23,607.14,0.30212903]
[1745568139409,0.28612539,610.23,607.15,1.498]
[1745568139707,0.28612539,610.23,607.16,0.30212903]
[1745568140209,0.28612539,610.23,607.15,1.498]
[1745568140409,0.28612539,610.23,607.16,0.3021285]
[1745568141009,2.12137941,610.35,607.16,0.3021285]
[1745568141409,0.28611009,610.34,607.16,0.3021285]
[1745568141803,0.28611009,610.34,607.15,1.498]
[1745568142010,0.28611009,610.34,607.16,0.3021285]
[1745568143309,0.28611009,610.34,607.15,1.498]
[1745568143510,0.28611009,610.34,607.16,0.30212873]
[1745568144910,0.28611009,610.34,607.15,1.498]
[1745568145110,0.28611009,610.34,607.16,0.30208406]
[1745568147014,2.12137941,610.46,607.16,0.30208406]
[1745568147212,0.28607364,610.33,607.16,0.30208406]
[1745568147607,2.12137941,610.46,607.16,0.30208406]
[1745568148112,2.12137941,610.46,607.16,1.78108406]
[1745568148311,2.12137941,610.3,607.19,1.04520797]
[1745568148610,2.12137941,610.3,607.2,0.30208406]
[1745568149613,2.12137941,610.3,607.19,1.04520797]
[1745568149813,2.12137941,610.3,607.2,0.30212222]
[1745568150313,0.28611598,610.29,607.2,0.30212222]
[1745568150512,0.28611598,610.29,607.17,0.30212222]
[1745568150707,0.28611598,610.29,607.18,0.30212222]
[1745568150910,0.28611598,610.29,607.17,0.30212222]
[1745568152717,2.40749539,610.29,607.16,1.76511598]
[1745568152916,2.40749539,610.29,607.17,0.30210649]
[1745568153216,2.12137941,610.29,607.17,0.30210649]
[1745568153512,0.28611127,610.28,607.17,0.30210649]
[1745568154118,0.28611127,610.28,607.22,1.04520797]
[1745568154119,2.12137941,610.22,607.22,1.04520797]
[1745568154316,2.12137941,610.22,607.23,0.30210649]
[1745568155819,2.12137941,610.22,607.22,1.04520797]
[1745568156120,2.12137941,610.3,607.23,0.30209245]
[1745568156420,0.28610774,610.21,607.24,0.30209245]
[1745568156618,2.12137941,610.3,607.22,0.30209245]
[1745568156918,2.12137941,610.3,607.23,0.30209245]
[1745568157119,2.12137941,610.3,607.24,0.30209245]
[1745568157420,2.12137941,610.3,607.25,0.30209245]
[1745568157620,2.12137941,610.3,607.22,0.30209245]
[1745568157817,0.28609245,610.29,607.22,0.30209245]
[1745568158422,2.12137941,610.25,607.27,1.04520797]
[1745568158719,2.12137941,610.25,607.28,0.30209245]
[1745568159319,0.28609128,610.24,607.28,0.30209245]
[1745568161522,2.12137941,609.99,607.34,1.04520797]
[1745568161820,2.12137941,609.99,607.35,0.30209245]
[1745568162021,2.12137941,609.99,607.34,1.04520797]
[1745568162222,2.12137941,609.99,607.35,0.30208984]
[1745568163024,2.12137941,610.17,607.35,0.30208984]
[1745568163219,2.12137941,610.17,607.32,0.30208984]
[1745568163619,2.12137941,610.17,607.31,1.04520797]
[1745568163924,2.12137941,610.17,607.32,0.30207159]
[1745568165226,2.12137941,610.23,607.34,1.04520797]
[1745568165723,2.12137941,610.23,607.35,0.30210785]
[1745568167022,2.12137941,610.23,607.34,1.04520797]
[1745568167928,2.12137941,610.23,607.35,1.118]
[1745568168328,2.4074848,610.22,607.35,1.118]
[1745568170924,2.12137941,610.12,607.35,1.118]
[1745568173323,0.28615832,610.21,607.35,1.118]
[1745568173324,2.12137941,609.52,607.35,1.118]
[1745568175930,2.12137941,609.97,607.35,1.118]
[1745568177329,0.28616538,609.96,607.35,1.118]
[1745568179930,2.12137941,610.01,607.35,1.118]
[1745568180133,2.12137941,609.96,607.33,1.411]
[1745568182337,2.12137941,609.75,607.33,1.411]
[1745568182836,2.12137941,609.75,607.34,1.717]
[1745568183434,0.28620657,609.74,607.34,1.717]
[1745568184235,0.28620657,609.74,607.35,1.196]
[1745568185233,0.28620657,609.74,607.36,1.396]
[1745568186038,2.12137941,609.88,607.36,1.396]
[1745568186333,0.28619009,609.73,607.36,1.38934919]
[1745568186638,2.12137941,609.88,607.36,1.38934919]
[1745568187340,0.28619009,609.87,607.36,1.38934919]
[1745568192044,2.12137941,610.01,607.36,1.38934919]
[1745568192442,0.28615832,609.86,607.36,1.38934919]
[1745568192639,2.12137941,610.01,607.36,1.38934919]
[1745568193341,0.28615832,610.0,607.36,1.38934919]
[1745568193744,2.12137941,609.94,607.36,1.38934919]
[1745568195446,0.28616421,609.93,607.36,1.38934919]
[1745568197247,0.28616421,609.93,607.35,1.196]
[1745568198053,2.12137941,610.05,607.35,1.196]
[1745568198350,0.28615244,609.92,607.35,1.196]
[1745568198545,2.12137941,610.06,607.35,1.196]
[1745568199452,0.28615127,610.05,607.35,1.196]
[1745568201052,2.12137941,610.06,607.35,1.196]
[1745568201250,0.28615127,610.04,607.35,1.196]
[1745568202650,0.28615127,610.04,607.36,1.398]
[1745568203351,2.12137941,609.96,607.36,1.398]
[1745568204450,0.28616185,609.95,607.36,1.398]
[1745568205753,2.12137941,609.91,607.36,1.398]
[1745568206253,2.12137941,609.91,607.37,1.677]
[1745568208655,0.28616185,609.95,607.37,1.677]
[1745568209150,0.28616185,609.95,607.38,1.556]
[1745568210056,2.12137941,610.01,607.38,1.556]
[1745568210251,2.12137941,610.03,607.38,1.556]
[1745568210450,0.28615362,609.94,607.38,1.556]
[1745568210750,2.12137941,610.03,607.38,1.556]
[1745568211556,0.28615127,610.02,607.38,1.556]
[1745568212756,0.28615127,610.02,607.39,1.474]
[1745568213057,2.12137941,610.09,607.39,1.474]
[1745568213355,0.28614303,610.01,607.39,1.474]
[1745568213553,2.12137941,610.09,607.39,1.474]
[1745568214057,2.12137941,609.99,607.39,1.474]
[1745568216664,2.12137941,609.93,607.39,1.474]
[1745568219264,2.12456312,611.16,607.39,1.474]
[1745568219265,0.28616185,609.92,607.39,1.474]
[1745568221868,2.12137941,609.81,607.39,1.474]
[1745568222265,0.28617597,609.8,607.39,1.474]
[1745568226068,2.12137941,609.67,607.39,1.474]
[1745568226969,2.12137941,609.67,607.4,1.731]
[1745568227766,0.28617597,609.8,607.4,1.731]
[1745568228172,2.12137941,609.88,607.4,1.731]
[1745568228371,0.28616656,609.79,607.4,1.731]
[1745568228574,2.12137941,609.88,607.4,1.731]
[1745568229373,0.28616656,609.87,607.4,1.731]
[1745568231075,2.12137941,609.88,607.4,1.731]
[1745568231270,0.28616656,609.86,607.4,1.731]
[1745568234076,2.12137941,609.87,607.4,1.731]
[1745568234277,0.28616774,609.85,607.4,1.731]
[1745568235478,0.28616774,609.85,607.4,3.359]
[1745568237079,2.12137941,610.03,607.4,3.359]
[1745568237274,0.28614891,609.84,607.4,3.359]
[1745568237677,2.12137941,610.03,607.4,3.359]
[1745568238582,0.28614891,610.02,607.4,3.359]
[1745568240182,2.12137941,610.14,607.4,3.359]
[1745568240482,2.40751538,610.01,607.4,3.359]
[1745568240682,2.12137941,610.01,607.4,3.359]
[1745568240982,2.12137941,610.01,607.4,4.481]
[1745568241281,0.28615127,610.0,607.4,4.481]
[1745568242982,2.12137941,610.01,607.4,4.481]
[1745568243280,0.28615127,609.99,607.4,4.481]
[1745568243485,2.12137941,609.87,607.4,4.481]
[1745568244586,1.19368238,609.86,607.4,4.481]
[1745568244882,1.19368238,609.85,607.4,4.481]
[1745568245487,2.12137941,609.68,607.4,4.481]
[1745568246088,1.19368238,609.67,607.4,4.481]
[1745568246286,1.47987012,609.67,607.4,4.481]
[1745568246586,1.19368238,609.66,607.4,4.481]
[1745568247283,1.19368238,609.65,607.4,4.481]
[1745568247682,1.19368238,609.64,607.4,4.481]
[1745568247989,1.19368238,609.63,607.4,4.481]
[1745568248887,1.19368238,609.62,607.4,4.481]
[1745568249588,1.19368238,609.61,607.4,4.481]
[1745568249988,1.19368238,609.6,607.4,4.481]
[1745568250488,1.19368238,609.59,607.4,4.481]
[1745568250786,0.28618774,609.67,607.4,4.481]
[1745568250988,1.19389333,609.58,607.4,4.481]
[1745568251688,1.19389333,609.57,607.4,4.481]
[1745568252288,0.28620069,609.56,607.4,4.481]
[1745568252487,1.19389333,609.55,607.4,4.481]
[1745568253390,1.19389333,609.54,607.4,4.481]
[1745568253886,1.19389333,609.53,607.4,4.481]
[1745568254592,1.19389333,609.52,607.4,4.481]
[1745568255093,1.19389333,609.51,607.4,4.481]
[1745568255290,1.4800999,609.51,607.4,4.481]
[1745568255487,1.19389333,609.5,607.4,4.481]
[1745568255788,0.28620657,609.51,607.4,4.481]
[1745568255789,1.19389333,609.49,607.4,4.481]
[1745568256793,1.19389333,609.48,607.4,4.481]
[1745568257092,1.19389333,609.47,607.4,4.481]
[1745568257392,1.19389333,609.46,607.4,4.481]
[1745568258288,0.28620657,609.45,607.4,4.481]
[1745568258494,1.4800999,609.45,607.4,4.481]
[1745568258792,1.19389333,609.44,607.4,4.481]
[1745568259192,1.19389333,609.43,607.4,4.481]
[1745568259893,1.19389333,609.42,607.4,4.481]
[1745568260294,1.19389333,609.41,607.4,4.481]
[1745568260897,1.19389333,609.4,607.4,4.481]
[1745568261091,1.19389333,609.39,607.4,4.481]
[1745568261696,1.19389333,609.38,607.4,4.481]
[1745568262096,1.19389333,609.38,607.41,0.30212193]
[1745568262599,1.19389333,609.37,607.24,0.30212193]
[1745568262796,1.19389333,609.37,607.25,0.30212193]
[1745568263096,1.19389333,609.37,607.26,0.30212193]
[1745568263298,1.19389333,609.37,607.24,0.30212193]
[1745568263497,1.19389333,609.37,607.37,1.04520797]
[1745568263698,1.19389333,609.36,607.38,0.30212193]
[1745568264298,1.19389333,609.36,607.39,1.324]
[1745568264497,1.19389333,609.36,607.4,0.30212193]
[1745568264798,1.19389333,609.36,607.4,1.55812193]
[1745568264998,0.28620657,609.45,607.4,1.55812193]
[1745568264999,1.19389333,609.35,607.4,2.833]
[1745568265498,1.19389333,609.34,607.4,2.833]
[1745568265994,1.19389333,609.34,607.4,4.547]
[1745568266199,1.19389333,609.33,607.4,4.547]
[1745568266595,1.19389333,609.32,607.4,4.547]
[1745568267397,1.48011167,609.31,607.4,4.547]
[1745568268098,1.19389333,609.3,607.4,4.547]
[1745568268603,1.19389333,609.29,607.4,4.547]
[1745568268904,1.19389333,609.28,607.4,4.547]
[1745568269404,1.19389333,609.27,607.4,4.547]
[1745568270404,0.28626661,609.26,607.4,4.547]
[1745568271005,1.19389333,609.25,607.4,4.547]
[1745568271406,1.19389333,609.24,607.4,4.547]
[1745568271799,1.19389333,609.23,607.4,4.547]
[1745568272400,1.19389333,609.22,607.4,4.547]
[1745568273107,1.19389333,609.21,607.4,4.547]
[1745568273299,1.4801776,609.21,607.4,4.547]
[1745568273701,1.19389333,609.2,607.4,4.547]
[1745568274205,1.19389333,609.19,607.4,4.547]
[1745568274504,1.19389333,609.18,607.4,4.547]
[1745568274704,1.19389333,609.18,607.4,3.291]
[1745568275301,1.19389333,609.17,607.4,3.291]
[1745568276002,1.19389333,609.16,607.4,3.291]
[1745568276507,0.28627956,609.15,607.4,3.291]
[1745568276908,1.19389333,609.14,607.4,3.291]
[1745568277409,1.19389333,609.13,607.4,3.291]
[1745568277709,1.19389333,609.12,607.4,3.291]
[1745568278010,1.19389333,609.11,607.4,1.577]
[1745568278410,1.19389333,609.1,607.4,1.577]
[1745568279212,1.19389333,609.09,607.39,1.324]
[1745568279408,1.48016818,609.09,607.39,1.324]
[1745568280212,1.19186328,609.08,607.39,1.324]
[1745568280710,1.19186328,609.07,607.39,1.324]
[1745568281212,1.19186328,609.06,607.39,1.324]
[1745568281713,1.19186328,609.05,607.39,1.324]
[1745568282314,1.19186328,609.04,607.39,1.324]
[1745568282514,1.47814284,609.04,607.39,1.324]
[1745568282917,1.19186328,609.03,607.39,1.324]
[1745568283216,1.19186328,609.02,607.39,1.324]
[1745568283718,1.19186328,609.01,607.39,1.324]
[1745568283917,1.19186328,609.01,607.12,0.28627956]
[1745568284114,1.19186328,609.01,607.13,0.30219758]
[1745568284314,1.19186328,609.0,607.12,0.28627956]
[1745568284517,1.19186328,609.0,607.13,0.30220024]
[1745568284816,1.19186328,608.99,607.13,0.30220024]
[1745568285313,1.4781817,608.98,607.02,0.30220024]
[1745568285512,1.4781817,608.98,607.12,0.28631842]
[1745568285714,1.4781817,608.98,607.13,0.30220024]
[1745568285910,1.19186328,608.97,607.05,1.04520797]
[1745568286113,1.19186328,608.97,607.06,0.30219447]
[1745568286417,1.19186328,608.97,607.06,0.58852349]
[1745568286716,1.19186328,608.96,607.07,0.30219447]
[1745568287112,1.19186328,608.95,607.07,0.30219447]
[1745568287417,1.19186328,608.94,607.06,0.28632902]
[1745568287614,1.19186328,608.94,607.08,0.30216355]
[1745568287917,1.19186328,608.94,607.09,0.30216355]
[1745568288120,1.19186328,608.93,607.07,0.30216355]
[1745568288419,1.47819466,608.93,607.08,0.30216355]
[1745568289017,1.19186328,608.92,607.08,0.30216355]
[1745568289519,1.19186328,608.91,607.08,0.30216355]
[1745568290420,1.19186328,608.9,607.08,0.30216355]
[1745568290720,0.28633138,608.93,607.08,0.30216355]
[1745568290721,1.19186328,608.89,607.08,0.30216355]
[1745568291422,1.19186328,608.88,607.07,0.28630782]
[1745568291719,1.19186328,608.88,607.08,0.30216355]
[1745568291920,1.19186328,608.87,607.08,0.30216355]
[1745568292121,1.19186328,608.87,607.09,0.30214812]
[1745568292416,1.47818524,608.86,607.1,0.30214812]
[1745568292620,1.47818524,608.86,607.08,0.30214812]
[1745568292821,1.47818524,608.86,607.09,0.30214812]
[1745568293016,1.47818524,608.86,607.08,0.30214812]
[1745568293224,1.19186328,608.85,607.21,1.04520797]
[1745568293417,1.19186328,608.85,607.22,0.30214812]
[1745568293615,1.19186328,608.85,607.21,1.04520797]
[1745568293818,1.19186328,608.85,607.22,0.30214975]
[1745568294020,1.19186328,608.84,607.22,0.30214975]
[1745568294222,1.19186328,608.83,607.22,0.30214975]
[1745568294622,1.19186328,608.82,607.22,0.30214975]
[1745568295018,1.19186328,608.81,607.22,0.30214975]
[1745568295224,1.19186328,608.81,607.23,0.30214713]
[1745568295521,1.19186328,608.81,607.24,0.30214713]
[1745568295722,1.19186328,608.8,607.25,0.30214713]
[1745568295917,1.19186328,608.8,607.26,0.30214713]
[1745568296120,1.19186328,608.8,607.16,0.30214713]
[1745568296321,1.19186328,608.79,607.27,0.30214713]
[1745568296617,1.19186328,608.79,607.28,0.3021556]
[1745568296818,1.19186328,608.78,607.29,0.3021554]
[1745568297023,1.19186328,608.78,607.16,0.3021554]
[1745568297219,1.19186328,608.78,607.17,0.3021554]
[1745568297424,0.28632785,608.77,607.17,0.3021554]
[1745568297723,1.19186328,608.76,607.18,0.3021554]
[1745568297923,1.19186328,608.76,607.16,0.3021554]
[1745568298128,1.19186328,608.75,607.17,0.3021554]
[1745568298316,1.19186328,608.75,607.15,0.28632785]
[1745568298317,1.19186328,608.75,607.18,0.30215086]
[1745568298521,1.19186328,608.74,607.19,0.30215086]
[1745568298722,1.19186328,608.74,607.16,0.30215086]
[1745568298923,1.19186328,608.74,607.17,0.30215086]
[1745568299123,1.19186328,608.73,607.16,0.30215086]
[1745568299325,1.19186328,608.73,607.17,0.30215086]
[1745568299521,1.19186328,608.73,607.16,0.30215086]
[1745568299725,1.19186328,608.73,607.17,0.30215086]
[1745568299926,1.19186328,608.73,607.16,0.30215086]
[1745568300127,1.19186328,608.72,607.17,0.30215086]
[1745568300432,1.19186328,608.72,607.18,0.30215086]
[1745568300830,1.19186328,608.72,607.15,0.28631489]
[1745568300831,1.19186328,608.72,607.19,0.30215086]
[1745568301134,1.19186328,608.71,607.2,0.30215086]
[1745568301334,1.19186328,608.71,607.21,0.30215086]